bitfinex-derivatives/quotes_ETHF0:USTF0_20260203
["timestamp","ask_amount","ask_price","bid_price","bid_amount"]
[1770156714396,0.00436511,2263.5,2262.5,2.18103243]
[1770156714590,0.00436511,2263.5,2262.1,2.04956952]
[1770156714591,2.41297778,2263.9,2262.9,2.18103243]
[1770156714795,2.41297778,2263.9,2262.6,2.18103243]
[1770156715500,2.41681063,2263.9,2262.6,2.18530326]
[1770156715695,2.41681063,2263.9,2262.6,0.00427083]
[1770156715696,2.32714648,2263.6,2262.6,0.00427083]
[1770156716194,2.32714648,2263.3,2262.0,2.17595863]
[1770156716600,2.32714648,2263.3,2262.2,2.17595863]
[1770156717101,2.32714648,2263.7,2262.2,2.17595863]
[1770156717399,2.32714648,2263.7,2262.6,2.39723863]
[1770156720300,0.00383285,2263.9,2263.1,1.99622918]
[1770156720597,2.32714648,2264.8,2263.5,1.99239633]
[1770156721002,2.32714648,2264.8,2263.5,2.21357633]
[1770156721197,2.32714648,2265.8,2264.3,1.99239633]
[1770156721400,2.3320437,2265.8,2264.5,1.99239633]
[1770156721698,0.22103,2265.2,2264.3,0.00329305]
[1770156721895,2.32714648,2264.9,2263.6,2.01034713]
[1770156722495,2.32714648,2265.7,2263.9,2.01034713]
[1770156722696,2.32714648,2265.7,2264.1,2.01034713]
[1770156722902,2.32714648,2265.7,2264.1,2.01594175]
[1770156723500,2.32714648,2265.7,2264.2,2.01034713]
[1770156724899,2.54812648,2265.7,2264.2,2.01034713]
[1770156726900,2.32714648,2265.7,2264.3,1.74585448]
[1770156727396,2.32714648,2265.7,2264.5,1.74585448]
[1770156727598,2.32714648,2266.3,2264.7,1.96692448]
[1770156727803,2.04956952,2267.2,2264.7,1.96692448]
[1770156727804,37.89935373,2268.7,2266.5,0.22089]
[1770156727993,0.22085,2267.0,2265.3,2.62135733]
[1770156728200,0.22085,2267.0,2264.8,2.11356952]
[1770156728201,0.22089,2266.6,2264.9,1.78596341]
[1770156728400,2.04956952,2267.5,2265.2,1.78596341]
[1770156728701,0.22086,2267.0,2265.6,1.78596341]
[1770156729000,2.04956952,2267.2,2265.3,1.78596341]
[1770156729196,2.04956952,2267.2,2265.2,0.00377198]
[1770156729197,0.00363809,2267.5,2265.6,1.78596341]
[1770156729904,2.32714648,2267.4,2265.6,1.78596341]
[1770156730106,2.32714648,2267.2,2265.6,1.78596341]
[1770156730498,2.32714648,2267.0,2265.6,1.78596341]
[1770156730702,2.32714648,2266.6,2265.2,0.00377198]
[1770156731000,2.54803648,2266.6,2265.2,0.00377198]
[1770156731406,4.64156952,2266.7,2265.2,0.00377198]
[1770156731407,2.32714648,2266.2,2265.2,0.00377198]
[1770156731998,2.32714648,2266.2,2265.2,1.80122145]
[1770156732197,2.32714648,2266.2,2265.2,0.00377198]
[1770156732400,2.32714648,2266.5,2265.2,1.80122145]
[1770156733806,2.32714648,2266.8,2265.2,2.02224145]
[1770156734106,2.32714648,2266.8,2265.2,1.80122145]
[1770156734311,2.54805648,2266.4,2265.2,0.00377198]
[1770156734513,2.32714648,2266.2,2265.2,0.00377198]
[1770156736508,2.32714648,2266.5,2265.2,2.36977926]
[1770156736810,2.32714648,2266.5,2265.2,2.14875926]
[1770156737005,2.32714648,2266.5,2265.2,2.36977926]
[1770156737413,2.81284,2267.1,2265.2,2.36977926]
[1770156737615,2.32714648,2267.0,2265.5,2.14498728]
[1770156737812,2.592,2267.3,2265.5,2.14498728]
[1770156737813,2.32714648,2266.8,2265.5,2.14498728]
[1770156738117,2.32714648,2266.5,2265.2,2.26239706]
[1770156738810,2.54804648,2266.5,2265.2,2.26239706]
[1770156739111,4.376716,2266.3,2265.2,0.00377198]
[1770156739414,2.591,2266.4,2265.2,0.00377198]
[1770156739415,2.32714648,2266.2,2265.2,0.00377198]
[1770156739617,2.32714648,2266.2,2265.2,2.26591112]
[1770156739817,4.53614648,2266.5,2265.2,2.26591112]
[1770156740115,2.32714648,2266.4,2265.2,2.26591112]
[1770156740318,2.209,2266.5,2265.2,2.48693112]
[1770156740513,2.32714648,2266.7,2265.4,2.26213914]
[1770156740709,2.4282722,2267.1,2265.4,2.48313914]
[1770156740914,2.4282722,2267.1,2265.6,2.26355418]
[1770156741110,2.4282722,2267.1,2265.2,4.80377198]
[1770156741111,2.4282722,2266.7,2265.2,7.06732616]
[1770156741408,2.4282722,2266.7,2265.3,2.26355418]
[1770156742008,2.4282722,2266.7,2265.5,2.48852459]
[1770156742411,4.8,2267.3,2265.5,2.48852459]
[1770156742716,2.4282722,2267.2,2265.7,2.48851459]
[1770156743114,2.6491022,2267.2,2265.7,2.48851459]
[1770156743315,2.4282722,2267.2,2266.1,2.26753459]
[1770156744012,0.00363809,2267.5,2266.2,2.52749021]
[1770156744013,2.43191029,2267.5,2266.2,2.52749021]
[1770156745719,2.43191029,2267.5,2266.4,2.25675398]
[1770156746423,2.4282722,2268.1,2266.5,2.25675398]
[1770156746622,2.4282722,2268.1,2266.8,2.47398589]
[1770156747020,2.4282722,2268.1,2267.0,2.25311589]
[1770156747523,2.43345609,2268.1,2267.0,2.25744771]
[1770156748020,0.00518389,2268.1,2267.0,2.47829771]
[1770156748711,0.00518389,2268.1,2267.2,2.26427823]
[1770156749224,2.4282722,2268.7,2267.4,2.26427823]
[1770156749421,2.4282722,2269.0,2267.6,2.25909434]
[1770156749919,2.4282722,2269.0,2267.5,2.62135733]
[1770156750116,2.4282722,2268.6,2267.1,2.25964426]
[1770156750318,2.43373642,2268.6,2267.1,2.25964426]
[1770156750616,2.43373642,2268.6,2267.3,2.48046426]
[1770156750820,2.65443642,2268.6,2267.3,2.25964426]
[1770156751121,2.4282722,2268.4,2267.0,2.26397608]
[1770156751322,2.4282722,2268.2,2267.0,2.26397608]
[1770156751521,7.2262722,2268.2,2267.0,0.00433182]
[1770156751822,2.4282722,2268.0,2266.6,2.25964426]
[1770156752012,2.4282722,2267.8,2266.6,2.25964426]
[1770156752412,2.4282722,2267.6,2266.3,4.36606569]
[1770156752914,2.4282722,2267.6,2266.4,2.15806569]
[1770156753219,2.4282722,2268.2,2266.6,2.15806569]
[1770156754418,2.6490022,2268.2,2266.6,2.15806569]
[1770156754820,2.4282722,2268.0,2266.6,2.15806569]
[1770156755221,2.4282722,2267.6,2266.3,2.21134968]
[1770156755422,2.4282722,2267.4,2265.6,2.25526724]
[1770156755720,2.4282722,2267.1,2265.6,2.25526724]
[1770156755917,2.4282722,2267.1,2265.3,2.36923677]
[1770156756322,2.4282722,2266.8,2265.3,2.36923677]
[1770156756518,37.78482965,2267.5,2265.5,2.59022677]
[1770156756519,2.4282722,2267.1,2265.5,2.59022677]
[1770156756720,2.4282722,2266.7,2265.5,2.59022677]
[1770156757417,2.4282722,2266.7,2265.5,2.36923677]
[1770156757618,2.6491622,2266.7,2265.3,2.37317944]
[1770156757818,2.4282722,2266.5,2265.3,0.00394267]
[1770156758719,2.4282722,2266.3,2265.3,0.00394267]
[1770156759618,2.4282722,2266.1,2264.8,1.42028495]
[1770156759922,2.4282722,2266.1,2264.8,3.78952172]
[1770156760122,2.4282722,2266.1,2264.5,7.41835733]
[1770156760123,2.4282722,2265.9,2264.5,2.207]
[1770156760525,2.4282722,2265.4,2264.1,2.36923677]
[1770156760723,2.4282722,2265.4,2264.1,0.00525362]
[1770156760923,2.4282722,2265.1,2264.1,0.00525362]
[1770156761125,2.43391834,2265.1,2264.1,0.00525362]
[1770156761823,2.43391834,2265.1,2264.1,2.37449039]
[1770156762421,0.00564614,2265.1,2264.1,2.37449039]
[1770156762826,2.43391834,2265.1,2264.1,2.37449039]
[1770156763729,0.00564614,2265.1,2264.1,2.37449039]
[1770156764133,2.4282722,2265.7,2264.4,2.36923677]
[1770156764628,2.4282722,2266.0,2264.6,2.36923677]
[1770156765227,2.43334399,2266.0,2264.6,2.36923677]
[1770156765932,2.43334399,2266.0,2264.9,2.36923677]
[1770156766124,0.00507179,2266.0,2265.0,0.22104]
[1770156766330,0.00507179,2266.0,2265.1,2.36923677]
[1770156766830,0.00507179,2266.0,2264.6,2.62135733]
[1770156766831,2.4282722,2266.7,2265.3,2.36923677]
[1770156767228,2.4282722,2266.7,2265.4,2.59023677]
[1770156767931,2.43197484,2266.7,2265.4,2.36923677]
[1770156770827,2.32939949,2268.1,2266.0,2.28685656]
[1770156771031,2.32939949,2268.1,2266.5,2.28685656]
[1770156771533,2.55014949,2268.0,2266.4,0.2209]
[1770156771734,2.5556904,2268.0,2266.4,0.22508199]
[1770156771931,2.5556904,2268.0,2266.4,0.00418199]
[1770156772135,2.32939949,2267.7,2266.4,0.00418199]
[1770156775035,2.32939949,2267.7,2266.4,2.24441589]
[1770156775837,2.32939949,2267.7,2266.5,2.45859864]
[1770156776434,2.32939949,2267.7,2266.7,2.45857864]
[1770156776637,2.4239856,2268.0,2266.7,2.45857864]
[1770156777334,2.4239856,2268.0,2266.9,2.23770864]
[1770156778533,2.41844469,2269.3,2267.9,2.14685941]
[1770156778936,2.41844469,2269.3,2267.6,2.59]
[1770156778937,2.41844469,2269.3,2268.1,2.14685941]
[1770156779137,2.41844469,2269.3,2267.6,2.59]
[1770156779138,2.41844469,2269.3,2268.2,2.36758941]
[1770156779340,2.41844469,2269.6,2268.4,2.14685941]
[1770156779541,0.00326954,2269.6,2268.4,2.37208734]
[1770156779734,0.00326954,2269.6,2268.5,2.37056926]
[1770156780035,0.00064119,2269.6,2268.8,2.14986926]
[1770156780237,0.00064119,2269.6,2268.4,2.21251793]
[1770156780238,2.41908588,2269.6,2268.4,2.15438719]
[1770156780439,2.41908588,2269.6,2268.4,0.00451793]
[1770156781442,2.41908588,2269.6,2268.4,2.15438719]
[1770156782145,2.41908588,2269.6,2268.4,0.00451793]
[1770156783845,2.41844469,2268.8,2267.3,0.22081]
[1770156784040,2.41844469,2268.8,2266.9,2.207]
[1770156784041,2.41844469,2268.6,2266.9,4.32722566]
[1770156784246,2.41844469,2268.6,2267.0,2.12022566]
[1770156784747,2.41844469,2268.6,2267.0,2.12487086]
[1770156785442,2.41844469,2268.6,2267.0,0.0046452]
[1770156785844,2.41844469,2268.1,2267.0,0.0046452]
[1770156786145,2.63920469,2267.9,2266.4,2.10816776]
[1770156787148,2.64332675,2267.9,2266.4,2.11310018]
[1770156787853,2.42256675,2267.9,2266.4,2.33400018]
[1770156790252,2.42256675,2267.9,2266.7,2.20527218]
[1770156790456,2.42256675,2267.9,2266.7,2.42615218]
[1770156790953,2.41844469,2267.4,2266.4,0.00493242]
[1770156791150,2.41844469,2267.4,2265.7,2.20527218]
[1770156791151,2.41844469,2267.3,2265.7,2.20527218]
[1770156791654,2.63926469,2267.3,2265.7,2.20527218]
[1770156792150,2.63926469,2267.3,2265.7,2.21072152]
[1770156795050,2.41844469,2267.3,2265.8,2.27693744]
[1770156795251,2.41844469,2267.8,2266.3,2.27693744]
[1770156796556,2.41844469,2267.8,2266.3,2.49785744]
[1770156800863,2.41844469,2267.8,2266.4,2.49763985]
[1770156802864,2.41844469,2267.8,2266.4,0.22091]
[1770156803465,4.62544469,2267.8,2266.4,0.22091]
[1770156803866,2.46689667,2267.5,2266.0,4.87047017]
[1770156804165,2.68769667,2267.5,2266.0,2.24911284]
[1770156804370,2.46689667,2267.3,2266.0,2.24911284]
[1770156805062,2.46689667,2267.3,2265.9,0.22095]
[1770156806665,2.68774667,2267.0,2265.7,0.00544934]
[1770156807759,2.46689667,2266.8,2265.7,0.00544934]
[1770156809073,2.46689667,2266.6,2265.1,2.39778104]
[1770156809372,2.46689667,2266.3,2264.8,2.39778104]
[1770156809967,2.46689667,2266.3,2265.1,2.39778104]
[1770156810169,2.47116258,2266.3,2265.1,2.40317917]
[1770156811268,2.47116258,2266.3,2265.1,0.00539813]
[1770156811269,2.46689667,2266.0,2265.1,0.00539813]
[1770156811470,2.46689667,2266.0,2264.5,4.60578104]
[1770156812571,2.46689667,2265.7,2264.5,4.61024287]
[1770156812965,2.68787667,2265.7,2264.5,0.00446183]
[1770156813164,2.68789667,2265.5,2264.5,0.00446183]
[1770156815469,2.46689667,2265.3,2263.9,2.39778104]
[1770156815675,2.46689667,2265.1,2263.6,5.01913837]
[1770156815874,4.798,2265.8,2263.6,2.39778104]
[1770156815875,2.46689667,2264.9,2263.6,2.39778104]
[1770156816075,2.46689667,2264.8,2263.6,2.39778104]
[1770156816587,2.46689667,2264.8,2263.6,2.39985186]
[1770156816880,2.68795667,2264.8,2263.6,0.00207082]
[1770156817173,4.798,2264.9,2263.6,0.00207082]
[1770156817174,2.46689667,2264.4,2263.6,0.00207082]
[1770156817373,2.68801667,2264.2,2262.7,2.39778104]
[1770156818679,2.46689667,2264.2,2263.0,2.39778104]
[1770156820179,2.46689667,2264.2,2263.0,2.61902104]
[1770156821179,2.46689667,2264.2,2263.0,2.39778104]
[1770156822373,2.68802667,2264.2,2262.7,2.39778104]
[1770156822872,2.46689667,2263.9,2262.2,2.39778104]
[1770156823076,2.46689667,2263.7,2262.2,2.39778104]
[1770156824477,2.68806667,2263.7,2262.2,2.39778104]
[1770156825281,2.46689667,2263.5,2262.2,2.39778104]
[1770156825582,2.68808667,2263.5,2261.7,2.39778104]
[1770156825882,2.68810667,2263.3,2261.7,2.39778104]
[1770156826081,4.801,2263.8,2261.7,2.39778104]
[1770156826082,2.46689667,2263.1,2261.7,2.39778104]
[1770156826478,2.68812667,2263.1,2261.7,2.39778104]
[1770156827879,2.46689667,2262.9,2261.7,2.39778104]
[1770156828079,2.46689667,2262.8,2261.4,2.39778104]
[1770156828274,2.47061053,2262.8,2261.4,2.39778104]
[1770156829584,2.69187053,2262.8,2261.4,2.39778104]
[1770156829982,2.69187053,2262.8,2261.2,0.22141]
[1770156831084,2.46055243,2262.6,2261.1,2.39778104]
[1770156831282,2.46055243,2262.3,2261.1,2.39778104]
[1770156831586,2.68186243,2262.3,2261.1,2.39778104]
[1770156832386,2.46055243,2262.3,2261.1,2.39778104]
[1770156832984,2.46055243,2262.3,2261.2,0.22141]
[1770156833181,2.46055243,2262.3,2261.3,2.2960291]
[1770156833783,2.46055243,2262.6,2261.3,2.2960291]
[1770156833986,0.00371386,2262.8,2261.6,2.5173991]
[1770156834185,2.46426629,2262.8,2261.6,2.5173991]
[1770156836080,0.00371386,2262.8,2261.8,2.34902586]
[1770156836686,2.39962526,2263.5,2262.1,2.57034586]
[1770156837484,2.39962526,2263.5,2262.3,2.34902586]
[1770156837684,0.00312258,2263.5,2262.6,2.34902586]
[1770156837884,2.39962526,2264.1,2262.7,2.34902586]
[1770156838086,2.211,2264.3,2263.1,2.34902586]
[1770156838280,2.39962526,2264.0,2262.8,2.34902586]
[1770156838583,2.39962526,2264.5,2262.8,2.34902586]
[1770156838992,2.40376348,2264.5,2262.8,2.34902586]
[1770156839489,2.40376348,2264.5,2263.0,2.34902586]
[1770156839888,2.40376348,2264.5,2263.0,2.57026586]
[1770156840686,2.62486348,2264.5,2263.0,2.34902586]
[1770156841185,2.40376348,2264.5,2263.2,2.16623154]
[1770156841387,0.00072815,2264.5,2263.8,2.16623154]
[1770156841784,2.39962526,2265.4,2264.1,2.16623154]
[1770156842390,2.62062526,2265.4,2264.1,2.16623154]
[1770156842692,2.62615308,2265.4,2264.1,2.17167429]
[1770156842993,2.62615308,2265.4,2264.1,0.00544275]
[1770156843394,2.39962526,2264.5,2263.1,2.07687369]
[1770156843694,2.39962526,2264.4,2262.8,2.07687369]
[1770156843893,2.62076526,2264.1,2262.8,2.07687369]
[1770156844093,2.39962526,2264.6,2263.0,2.07687369]
[1770156844499,2.39962526,2264.6,2263.2,2.29809369]
[1770156845394,2.39962526,2264.6,2263.2,2.07687369]
[1770156846493,2.39962526,2264.6,2263.2,2.29809369]
[1770156846689,2.39962526,2264.9,2263.5,2.03554185]
[1770156849487,2.39962526,2264.9,2263.6,0.22118]
[1770156849696,2.39962526,2264.9,2263.7,2.01611315]
[1770156850787,2.39962526,2265.3,2263.7,2.01611315]
[1770156851394,2.39962526,2265.3,2264.0,1.96746892]
[1770156851697,2.39962526,2265.3,2264.2,1.96746892]
[1770156851994,2.39962526,2265.3,2263.8,4.803]
[1770156851995,0.00552782,2265.4,2264.4,1.96746892]
[1770156852394,0.00552782,2265.4,2264.4,2.18856892]
[1770156853296,2.39962526,2266.3,2265.0,1.94562923]
[1770156853495,2.39962526,2266.3,2265.1,1.94562923]
[1770156854499,2.40501033,2266.3,2265.1,1.9506497]
[1770156854999,2.62593033,2266.3,2265.1,0.00502047]
[1770156855196,2.39962526,2266.1,2265.1,0.00502047]
[1770156856900,2.39962526,2265.7,2264.4,1.76723548]
[1770156857292,2.39962526,2265.7,2264.0,2.81314]
[1770156857293,2.62060526,2265.7,2264.1,1.76723548]
[1770156857693,2.62060526,2265.7,2264.0,0.22114]
[1770156857694,2.39962526,2265.5,2264.0,0.22114]
[1770156857888,2.39962526,2265.5,2264.0,0.2257484]
[1770156858090,2.39962526,2265.5,2264.0,1.99298388]
[1770156858494,2.39962526,2265.5,2264.2,1.98835548]
[1770156858694,2.39962526,2265.5,2264.3,0.22111]
[1770156858899,2.39962526,2265.5,2264.4,1.75969312]
[1770156860197,2.39962526,2265.5,2264.4,1.98079312]
[1770156862103,2.41832467,2265.3,2264.0,0.0046084]
[1770156862801,2.41832467,2265.1,2264.0,0.0046084]
[1770156863103,2.41832467,2264.9,2264.0,0.0046084]
[1770156863302,2.41832467,2264.9,2263.4,0.2212]
[1770156864401,2.41832467,2264.9,2263.4,0.22263086]
[1770156864594,2.63938467,2264.9,2263.4,0.22263086]
[1770156864998,2.63938467,2264.9,2263.4,0.00143086]
[1770156865313,2.41832467,2264.7,2263.4,0.00143086]
[1770156865596,2.42245937,2264.7,2263.4,0.00143086]
[1770156865895,2.41832467,2264.5,2263.4,0.00143086]
[1770156868000,2.63941467,2264.5,2263.4,0.00143086]
[1770156868200,2.41832467,2264.2,2263.4,0.00143086]
[1770156871908,2.63944467,2264.2,2262.9,2.62135733]
[1770156872204,2.41832467,2264.2,2262.9,4.41996898]
[1770156872404,2.63945467,2264.2,2262.7,2.62135733]
[1770156873106,2.63945467,2264.2,2262.7,4.44156701]
[1770156873610,2.41832467,2263.9,2262.5,2.62135733]
[1770156873800,2.63948467,2263.9,2262.3,4.83135733]
[1770156874004,2.63948467,2263.9,2262.3,2.21]
[1770156874205,2.41832467,2263.7,2262.1,4.44156701]
[1770156874404,2.41832467,2263.7,2262.1,1.82020968]
[1770156874705,2.41832467,2263.5,2262.0,2.62135733]
[1770156875008,2.63951467,2263.5,2261.9,2.84269733]
[1770156875199,2.63951467,2263.5,2262.1,1.82168965]
[1770156875900,2.63951467,2263.5,2262.0,0.22133]
[1770156876906,2.41832467,2263.3,2261.8,1.82168965]
[1770156878906,2.41832467,2262.9,2261.2,2.04490558]
[1770156879109,2.41832467,2262.5,2261.2,1.82349558]
[1770156879407,2.41832467,2262.5,2260.8,2.98003797]
[1770156879408,2.41832467,2262.5,2261.4,2.04488558]
[1770156880609,2.41832467,2262.5,2261.4,0.22139]
[1770156881106,2.41832467,2262.5,2261.1,1.82349558]
[1770156881804,2.41832467,2262.5,2261.1,2.04491558]
[1770156882011,2.41832467,2262.5,2261.3,1.81878385]
[1770156883306,2.41832467,2262.5,2261.0,2.04034339]
[1770156885413,2.63961467,2262.5,2261.0,2.04034339]
[1770156887008,6.85446143,2262.9,2261.0,0.22143]
[1770156887009,2.63963467,2262.3,2261.0,0.22143]
[1770156887209,2.41832467,2262.1,2260.5,0.22148]
[1770156887815,2.41832467,2261.9,2260.6,1.69400198]
[1770156888005,2.41832467,2261.9,2260.8,0.22145]
[1770156889111,2.41832467,2261.9,2260.8,1.9296671]
[1770156890808,2.4322258,2262.2,2261.3,0.2214]
[1770156891413,2.4322258,2262.2,2261.4,0.22139]
[1770156895108,2.41212611,2262.5,2261.4,0.22139]
[1770156897410,2.41212611,2262.5,2261.6,0.22137]
[1770156898414,2.41212611,2262.5,2261.3,2.62135733]
[1770156898609,2.41212611,2262.5,2261.4,0.22139]
[1770156899916,2.41212611,2262.3,2261.1,2.62135733]
[1770156900112,2.41212611,2262.0,2261.1,2.62135733]
[1770156900314,2.41212611,2262.0,2261.0,2.62135733]
[1770156901114,2.41212611,2262.0,2261.1,2.62135733]
[1770156901318,2.63338611,2262.8,2261.3,0.2214]
[1770156901513,2.41212611,2262.6,2261.3,0.2214]
[1770156901921,2.41212611,2262.4,2261.1,2.62135733]
[1770156902115,2.41212611,2262.4,2261.2,1.77576589]
[1770156902317,2.41212611,2262.4,2260.5,3.94761608]
[1770156902318,2.41212611,2261.8,2260.5,3.94761608]
[1770156902716,2.41212611,2261.8,2260.4,6.58602871]
[1770156902916,2.41212611,2261.8,2260.5,6.36453871]
[1770156903417,2.41212611,2261.8,2260.7,2.41692263]
[1770156903618,2.41212611,2261.8,2260.7,6.58599871]
[1770156903920,2.41212611,2261.8,2260.8,3.94761608]
[1770156904818,2.41212611,2261.8,2260.7,4.16907608]
[1770156905021,2.41212611,2261.8,2260.8,3.94761608]
[1770156906819,2.41212611,2261.8,2260.6,4.16908608]
[1770156907020,2.41212611,2261.8,2260.7,2.41692263]
[1770156907222,2.41212611,2261.8,2260.8,3.94761608]
[1770156908422,2.41212611,2261.8,2260.9,2.41692263]
[1770156908623,2.41212611,2261.8,2261.0,6.36453871]
[1770156908824,2.41212611,2261.8,2261.0,3.94761608]
[1770156909521,2.41212611,2261.8,2260.8,3.94761608]
[1770156910825,2.41212611,2261.8,2260.7,3.94761608]
[1770156911030,2.41212611,2261.8,2260.6,3.94761608]
[1770156912028,2.63349611,2261.7,2260.5,3.94761608]
[1770156912330,2.41212611,2262.2,2260.9,2.63836263]
[1770156912532,2.41212611,2262.2,2261.1,6.36453871]
[1770156912726,2.41212611,2262.2,2261.0,3.94761608]
[1770156912930,2.41212611,2262.2,2260.8,8.95953871]
[1770156913131,2.41212611,2262.0,2260.8,3.94761608]
[1770156913330,2.41212611,2261.8,2260.6,3.94761608]
[1770156913530,2.41212611,2261.8,2260.5,3.94761608]
[1770156913725,2.41212611,2261.5,2260.3,3.95153945]
[1770156913930,2.213,2261.7,2260.3,0.00392337]
[1770156913931,2.63354611,2261.2,2260.3,0.00392337]
[1770156914130,2.6386906,2261.2,2259.9,3.94761608]
[1770156914533,2.41212611,2260.9,2259.8,3.94761608]
[1770156914736,2.41212611,2260.9,2259.6,6.54361608]
[1770156915136,5.22957611,2260.9,2259.6,0.00100464]
[1770156915332,2.41212611,2260.8,2259.6,0.00100464]
[1770156915736,2.41212611,2260.8,2259.7,2.41692263]
[1770156916035,2.41212611,2260.8,2259.8,2.596]
[1770156916426,2.41212611,2260.8,2259.8,5.01292263]
[1770156916830,2.41212611,2260.8,2259.9,2.41692263]
[1770156917035,2.41212611,2261.1,2259.9,2.41692263]
[1770156918432,2.41212611,2261.1,2259.8,2.596]
[1770156918735,2.41212611,2261.1,2259.6,8.96154335]
[1770156918934,2.41212611,2260.9,2259.6,0.00100464]
[1770156919334,2.63356611,2260.9,2259.6,0.00100464]
[1770156920238,2.63356611,2260.9,2259.6,2.41792727]
[1770156921136,2.41212611,2260.9,2259.6,2.41792727]
[1770156921336,2.41212611,2260.9,2259.8,2.37660849]
[1770156922036,2.41212611,2260.9,2259.7,0.22156]
[1770156922436,2.41212611,2260.9,2259.6,0.00100464]
[1770156923029,2.41212611,2260.9,2259.6,2.37761313]
[1770156923430,2.30579106,2260.7,2259.6,0.00100464]
[1770156923633,2.30579106,2260.3,2259.0,2.37660849]
[1770156923838,2.30579106,2260.3,2259.1,4.58960849]
[1770156924238,2.30579106,2260.3,2259.1,2.213]
[1770156925034,2.52731106,2260.1,2258.9,0.22196456]
[1770156925732,2.52733106,2259.9,2258.4,2.37660849]
[1770156925932,2.596,2260.3,2258.1,4.16933608]
[1770156925933,2.30579106,2259.7,2258.1,4.16933608]
[1770156926135,2.30579106,2259.7,2258.1,6.54594457]
[1770156926338,2.30579106,2259.7,2258.1,2.59832849]
[1770156926737,2.30579106,2259.7,2258.3,2.37660849]
[1770156926935,2.52735106,2259.7,2258.3,2.37660849]
[1770156927130,4.81,2259.9,2257.4,2.37660849]
[1770156927131,2.30579106,2259.1,2257.4,2.37660849]
[1770156927440,2.30579106,2258.9,2257.6,2.37660849]
[1770156928236,2.30579106,2258.9,2257.6,2.59836849]
[1770156929434,2.30579106,2258.9,2257.4,2.597]
[1770156929435,2.30579106,2258.9,2257.2,2.37660849]
[1770156929740,2.30579106,2258.7,2257.2,2.59841849]
[1770156931234,2.30579106,2258.7,2257.2,2.37660849]
[1770156931638,2.30579106,2258.7,2256.7,0.22186]
[1770156931844,2.30579106,2258.7,2256.8,2.37660849]
[1770156932040,2.30579106,2258.5,2256.8,2.37660849]
[1770156932242,2.52749106,2258.3,2256.8,2.37660849]
[1770156932436,2.52749106,2258.3,2256.6,4.97360849]
[1770156932736,2.52749106,2258.3,2256.7,2.37660849]
[1770156933241,2.30579106,2258.3,2256.7,2.59845849]
[1770156934345,2.52749106,2258.3,2256.7,2.37660849]
[1770156934646,2.30579106,2258.3,2256.9,2.37660849]
[1770156935944,5.03982627,2259.1,2257.3,2.37660849]
[1770156936139,2.30579106,2259.0,2257.3,2.37660849]
[1770156936447,2.30579106,2259.0,2257.3,2.59839849]
[1770156936641,2.30579106,2258.8,2257.0,2.37660849]
[1770156937548,2.52744106,2258.8,2257.0,2.59842849]
[1770156937747,2.30579106,2258.6,2257.0,2.59842849]
[1770156937944,2.52746106,2258.6,2257.0,2.59842849]
[1770156938139,2.30579106,2258.4,2256.7,2.37660849]
[1770156938544,2.52748106,2258.4,2256.7,2.37660849]
[1770156938741,2.30579106,2258.2,2256.7,2.37660849]
[1770156939044,2.30579106,2258.1,2256.7,2.37660849]
[1770156939446,2.30579106,2258.1,2256.7,2.59845849]
[1770156940346,2.30579106,2258.1,2257.0,2.37660849]
[1770156941844,2.30579106,2258.1,2256.7,2.37660849]
[1770156942347,2.30579106,2258.1,2256.7,2.59845849]
[1770156944343,2.30579106,2258.1,2256.9,2.37660849]
[1770156944547,2.30579106,2258.1,2257.1,2.59841849]
[1770156944850,2.30579106,2258.1,2256.8,2.37660849]
[1770156947048,2.30579106,2258.1,2257.0,2.37660849]
[1770156947553,2.30579106,2258.1,2257.0,2.59842849]
[1770156949148,2.30579106,2258.1,2256.6,2.37660849]
[1770156949348,2.30579106,2258.1,2256.9,2.37660849]
[1770156950749,2.30579106,2258.1,2256.6,2.46183194]
[1770156950953,2.53778821,2257.9,2256.4,0.22188]
[1770156951554,2.53778821,2257.9,2256.6,2.46183194]
[1770156952056,2.31604821,2257.3,2256.1,2.46183194]
[1770156952256,0.00510477,2257.3,2256.3,2.46183194]
[1770156952757,0.00510477,2257.3,2256.3,2.68373194]
[1770156953250,0.00510477,2257.3,2256.6,2.46183194]
[1770156954754,2.32115298,2257.3,2256.3,2.46183194]
[1770156954958,2.32115298,2257.3,2256.2,3.94761608]
[1770156955157,2.32115298,2257.3,2256.0,2.26631825]
[1770156955158,2.32115298,2257.3,2256.0,6.21393433]
[1770156955455,2.32115298,2257.3,2256.1,3.94761608]
[1770156956155,2.32115298,2257.3,2256.0,3.94761608]
[1770156956358,2.32115298,2257.3,2256.1,2.26631825]
[1770156956762,2.32115298,2257.3,2255.9,4.16954608]
[1770156957058,2.32115298,2257.3,2255.9,0.22193]
[1770156957253,2.32115298,2257.3,2255.8,6.21393433]
[1770156957454,2.30730536,2257.2,2255.9,2.26631825]
[1770156957761,2.30730536,2257.2,2255.8,6.21393433]
[1770156957960,2.30730536,2257.2,2255.8,2.26631825]
[1770156958256,2.31241013,2257.3,2256.2,2.26631825]
[1770156958458,2.31241013,2257.3,2256.0,6.21393433]
[1770156958665,2.31241013,2257.3,2256.0,2.26631825]
[1770156959060,2.31241013,2257.3,2255.9,2.6]
[1770156959563,2.31241013,2257.3,2255.9,4.86631825]
[1770156960063,2.31241013,2257.3,2255.9,2.6]
[1770156960363,2.30730536,2256.9,2255.6,2.26631825]
[1770156961360,2.31241013,2257.3,2255.8,2.26631825]
[1770156961562,2.30730536,2257.7,2256.5,2.26631825]
[1770156961759,2.217,2259.1,2256.9,2.26631825]
[1770156962058,2.05784789,2258.1,2256.5,2.26631825]
[1770156962263,2.05784789,2257.7,2256.2,2.26631825]
[1770156962462,2.6,2257.6,2255.9,2.26631825]
[1770156962664,4.91096598,2257.6,2256.0,2.26631825]
[1770156962864,2.31096598,2257.6,2256.4,2.64577907]
[1770156963058,0.22167,2258.6,2256.7,2.26631825]
[1770156963264,2.601,2258.5,2256.7,2.26631825]
[1770156963461,0.22172,2258.1,2256.7,2.26631825]
[1770156963662,2.30730536,2258.0,2256.7,2.26631825]
[1770156964060,2.312976,2258.0,2256.9,2.26631825]
[1770156964264,2.30730536,2258.6,2257.1,2.26631825]
[1770156964559,2.30730536,2258.7,2257.6,2.26631825]
[1770156964767,2.30730536,2258.9,2257.6,2.26631825]
[1770156965064,2.30730536,2258.7,2257.5,2.26631825]
[1770156965267,0.00366858,2258.7,2257.5,2.27175128]
[1770156965560,2.30730536,2258.6,2257.7,2.26631825]
[1770156968262,4.61461072,2258.6,2257.7,2.26631825]
[1770156968459,2.30730536,2258.5,2257.7,2.26631825]
[1770156969569,2.30730536,2258.5,2257.5,0.00543303]
[1770156969570,4.61461072,2258.5,2257.5,2.27175128]
[1770156969767,2.30730536,2258.5,2257.5,2.27175128]
[1770156970169,0.00366858,2258.7,2257.5,2.27175128]
[1770156970470,2.31097394,2258.7,2257.5,2.27175128]
[1770156970970,2.31097394,2258.7,2257.6,2.26631825]
[1770156971270,4.6182793,2258.7,2257.6,2.26631825]
[1770156972472,2.31097394,2258.7,2257.6,2.26631825]